[Event "Ruzomberok Closed 2020 - 3. turnaj"]
[Site "Ruzomberok, Slovakia"]
[Date "2020.09.05"]
[Round "7.1"]
[White "Holly, Andrej"]
[Black "Gasper, Jaroslav"]
[Result "1-0"]
[TimeControl "10m + 5s"]
[WhiteElo "1714"]
[BlackElo "1721"]

1. g3 {[%clk 00:10:09]} d5 {[%clk 00:10:10]} {[%emt 00:00:01]} 2. Bg2 {[%clk
00:10:12]} e5 {[%clk 00:10:14]} {[%emt 00:00:02]} 3. c4 {[%clk 00:10:12]}
{[%emt 00:00:04]} c6 {[%clk 00:10:16]} {[%emt 00:00:04]} 4. cxd5 {[%clk
00:10:04]} {[%emt 00:00:13]} cxd5 {[%clk 00:10:20]} 5. Nf3 {[%clk 00:09:53]}
{[%emt 00:00:17]} Nc6 {[%clk 00:10:23]} {[%emt 00:00:03]} 6. d3 {[%clk
00:09:53]} {[%emt 00:00:05]} h5 {[%clk 00:10:21]} {[%emt 00:00:07]} 7. Nc3
{[%clk 00:09:36]} {[%emt 00:00:22]} a6 {[%clk 00:10:13]} {[%emt 00:00:14]} 8.
O-O {[%clk 00:09:13]} {[%emt 00:00:27]} Bc5 {[%clk 00:10:11]} {[%emt 00:00:07]}
9. e4 {[%clk 00:08:30]} {[%emt 00:00:48]} d4 {[%clk 00:10:07]} {[%emt
00:00:09]} 10. Nd5 {[%clk 00:08:09]} {[%emt 00:00:26]} Nf6 {[%clk 00:10:07]}
{[%emt 00:00:05]} 11. Bg5 {[%clk 00:08:05]} {[%emt 00:00:09]} Qd6 {[%clk
00:09:58]} {[%emt 00:00:14]} 12. Bxf6 {[%clk 00:07:08]} {[%emt 00:01:02]} gxf6
{[%clk 00:10:02]} 13. Nd2 {[%clk 00:07:11]} {[%emt 00:00:01]} b5 {[%clk
00:09:51]} {[%emt 00:00:16]} 14. a4 {[%clk 00:06:58]} {[%emt 00:00:18]} Bb7
{[%clk 00:09:15]} {[%emt 00:00:41]} 15. axb5 {[%clk 00:06:53]} {[%emt
00:00:10]} axb5 {[%clk 00:09:16]} {[%emt 00:00:04]} 16. Rxa8+ {[%clk 00:06:49]}
{[%emt 00:00:09]} Bxa8 {[%clk 00:09:20]} {[%emt 00:00:01]} 17. Qf3 {[%clk
00:05:47]} {[%emt 00:01:07]} Rh6 {[%clk 00:07:38]} {[%emt 00:01:48]} 18. Qf5
{[%clk 00:05:15]} {[%emt 00:00:36]} Ne7 {[%clk 00:06:44]} {[%emt 00:01:00]} 19.
Nxe7 {[%clk 00:03:54]} {[%emt 00:01:27]} Kxe7 {[%clk 00:06:30]} {[%emt
00:00:18]} 20. f4 {[%clk 00:03:54]} {[%emt 00:00:05]} Qe6 {[%clk 00:05:32]}
{[%emt 00:01:02]} 21. fxe5 {[%clk 00:03:22]} {[%emt 00:00:37]} Qxe5 {[%clk
00:03:37]} {[%emt 00:02:00]} 22. Qc8 {[%clk 00:02:40]} {[%emt 00:00:48]} Qg5
{[%clk 00:01:27]} {[%emt 00:02:15]} 23. Nf3 {[%clk 00:02:43]} Qe3+ {[%clk
00:01:17]} {[%emt 00:00:16]} 24. Kh1 {[%clk 00:02:47]} 1-0

[Event "Ruzomberok Closed 2020 - 3. turnaj"]
[Site "Ruzomberok, Slovakia"]
[Date "2020.09.05"]
[Round "7.2"]
[White "Jurgos, Samuel"]
[Black "Konkol, Emil"]
[Result "0-1"]
[TimeControl "10m + 5s"]
[WhiteElo "1073"]
[BlackElo "1799"]

1. d4 {[%clk 00:10:08]} {[%emt 00:00:02]} d6 {[%clk 00:10:05]} {[%emt
00:00:05]} 2. Nc3 {[%clk 00:10:08]} {[%emt 00:00:05]} Nc6 {[%clk 00:10:04]}
{[%emt 00:00:06]} 3. e4 {[%clk 00:10:07]} {[%emt 00:00:05]} Nf6 {[%clk
00:10:03]} {[%emt 00:00:07]} 4. f4 {[%clk 00:10:05]} {[%emt 00:00:06]} Bg4
{[%clk 00:09:55]} {[%emt 00:00:13]} 5. Be2 {[%clk 00:09:53]} {[%emt 00:00:18]}
Bxe2 {[%clk 00:09:55]} {[%emt 00:00:05]} 6. Ngxe2 {[%clk 00:09:53]} {[%emt
00:00:05]} Nd7 {[%clk 00:09:53]} {[%emt 00:00:07]} 7. O-O {[%clk 00:09:52]}
{[%emt 00:00:05]} f6 {[%clk 00:09:56]} {[%emt 00:00:03]} 8. Be3 {[%clk
00:09:30]} {[%emt 00:00:26]} e6 {[%clk 00:09:45]} {[%emt 00:00:15]} 9. a3
{[%clk 00:08:51]} {[%emt 00:00:46]} Ne7 {[%clk 00:09:38]} {[%emt 00:00:11]} 10.
b4 {[%clk 00:08:45]} {[%emt 00:00:11]} g6 {[%clk 00:09:28]} {[%emt 00:00:15]}
11. Ng3 {[%clk 00:08:32]} {[%emt 00:00:19]} Bg7 {[%clk 00:09:29]} {[%emt
00:00:03]} 12. Nce2 {[%clk 00:08:32]} {[%emt 00:00:04]} O-O {[%clk 00:09:25]}
{[%emt 00:00:09]} 13. c4 {[%clk 00:08:35]} {[%emt 00:00:03]} e5 {[%clk
00:09:20]} {[%emt 00:00:10]} 14. d5 {[%clk 00:08:30]} {[%emt 00:00:10]} f5
{[%clk 00:08:59]} {[%emt 00:00:25]} 15. fxe5 {[%clk 00:08:07]} {[%emt
00:00:28]} Bxe5 {[%clk 00:08:59]} {[%emt 00:00:05]} 16. Bf4 {[%clk 00:07:37]}
{[%emt 00:00:36]} Bxa1 {[%clk 00:08:59]} {[%emt 00:00:04]} 17. Qxa1 {[%clk
00:07:37]} {[%emt 00:00:05]} Rf7 {[%clk 00:07:47]} {[%emt 00:01:17]} 18. Nd4
{[%clk 00:07:27]} {[%emt 00:00:15]} Nf8 {[%clk 00:07:37]} {[%emt 00:00:15]} 19.
Bh6 {[%clk 00:07:25]} {[%emt 00:00:06]} c6 {[%clk 00:07:01]} {[%emt 00:00:42]}
20. Ne6 {[%clk 00:07:16]} {[%emt 00:00:14]} Qb6+ {[%clk 00:06:27]} {[%emt
00:00:39]} 21. c5 {[%clk 00:07:16]} {[%emt 00:00:05]} dxc5 {[%clk 00:06:29]}
{[%emt 00:00:02]} 22. Bxf8 {[%clk 00:07:00]} {[%emt 00:00:21]} cxb4+ {[%clk
00:06:26]} {[%emt 00:00:08]} 23. Kh1 {[%clk 00:07:03]} {[%emt 00:00:02]} Raxf8
{[%clk 00:06:26]} {[%emt 00:00:06]} 24. Nxf8 {[%clk 00:07:04]} {[%emt
00:00:03]} Rxf8 {[%clk 00:06:22]} {[%emt 00:00:08]} 25. d6 {[%clk 00:07:06]}
{[%emt 00:00:04]} Nc8 {[%clk 00:05:43]} {[%emt 00:00:44]} 26. e5 {[%clk
00:05:57]} {[%emt 00:01:15]} bxa3 {[%clk 00:04:59]} {[%emt 00:00:48]} 27. Qxa3
{[%clk 00:05:50]} {[%emt 00:00:12]} Qd4 {[%clk 00:04:56]} {[%emt 00:00:09]} 28.
d7 {[%clk 00:05:37]} {[%emt 00:00:18]} Qxd7 {[%clk 00:04:56]} {[%emt 00:00:04]}
29. Qb3+ {[%clk 00:05:24]} {[%emt 00:00:17]} Kh8 {[%clk 00:04:24]} {[%emt
00:00:39]} 30. Rd1 {[%clk 00:05:22]} {[%emt 00:00:07]} Qg7 {[%clk 00:04:10]}
{[%emt 00:00:18]} 31. e6 {[%clk 00:05:14]} {[%emt 00:00:14]} Ne7 {[%clk
00:03:50]} {[%emt 00:00:24]} 32. Qxb7 {[%clk 00:05:07]} {[%emt 00:00:13]} Nd5
{[%clk 00:03:39]} {[%emt 00:00:15]} 33. Qxc6 {[%clk 00:04:38]} {[%emt
00:00:35]} Ne3 {[%clk 00:02:53]} {[%emt 00:00:46]} 34. Re1 {[%clk 00:03:12]}
{[%emt 00:01:35]} f4 {[%clk 00:02:45]} {[%emt 00:00:14]} 35. Ne4 {[%clk
00:02:57]} {[%emt 00:00:19]} Qb2 {[%clk 00:02:36]} {[%emt 00:00:15]} 36. Ng5
{[%clk 00:02:18]} {[%emt 00:00:43]} Qe5 {[%clk 00:00:17]} {[%emt 00:02:25]} 37.
Nf7+ {[%clk 00:02:12]} {[%emt 00:00:11]} Rxf7 {[%clk 00:00:22]} 38. Qe8+ {[%clk
00:02:05]} {[%emt 00:00:12]} Kg7 {[%clk 00:00:23]} {[%emt 00:00:04]} 39. Qxf7+
{[%clk 00:02:07]} {[%emt 00:00:03]} Kh6 {[%clk 00:00:27]} {[%emt 00:00:01]} 40.
Qf8+ {[%clk 00:02:00]} {[%emt 00:00:11]} Kh5 {[%clk 00:00:31]} {[%emt
00:00:02]} 41. e7 {[%clk 00:00:49]} {[%emt 00:01:16]} Qe4 {[%clk 00:00:28]}
{[%emt 00:00:08]} 42. Qf5+ {[%clk 00:00:06]} {[%emt 00:00:48]} gxf5 {[%clk
00:00:29]} {[%emt 00:00:04]} 43. e8=Q+ Qxe8 {[%clk 00:00:33]} 44. g3 {[%clk
00:00:13]} {[%emt 00:00:02]} Qe4+ {[%clk 00:00:36]} {[%emt 00:00:02]} 45. Kg1
{[%clk 00:00:15]} {[%emt 00:00:03]} Qg2# {[%clk 00:00:00]} {[%emt 00:00:01]}
0-1

[Event "Ruzomberok Closed 2020 - 3. turnaj"]
[Site "Ruzomberok, Slovakia"]
[Date "2020.09.05"]
[Round "7.3"]
[White "Konkolova, Nikola"]
[Black "Gollner, Martin"]
[Result "0-1"]
[TimeControl "10m + 5s"]
[WhiteElo "1483"]
[BlackElo "1123"]

1. e4 {[%clk 00:10:06]} {[%emt 00:00:03]} c5 {[%clk 00:10:08]} {[%emt
00:00:02]} 2. Nf3 {[%clk 00:10:09]} {[%emt 00:00:02]} e6 {[%clk 00:10:12]}
{[%emt 00:00:01]} 3. d4 {[%clk 00:10:11]} {[%emt 00:00:02]} cxd4 {[%clk
00:10:16]} {[%emt 00:00:02]} 4. Nxd4 {[%clk 00:10:14]} {[%emt 00:00:02]} Nc6
{[%clk 00:10:20]} {[%emt 00:00:01]} 5. Be3 {[%clk 00:10:14]} {[%emt 00:00:04]}
Nf6 {[%clk 00:09:56]} {[%emt 00:00:29]} 6. Bd3 {[%clk 00:10:14]} {[%emt
00:00:05]} Qa5+ {[%clk 00:09:06]} {[%emt 00:00:56]} 7. c3 {[%clk 00:10:05]}
{[%emt 00:00:14]} Be7 {[%clk 00:07:48]} {[%emt 00:01:24]} 8. O-O {[%clk
00:09:52]} {[%emt 00:00:18]} O-O {[%clk 00:07:51]} {[%emt 00:00:02]} 9. Nd2
{[%clk 00:09:45]} {[%emt 00:00:11]} Qc7 {[%clk 00:07:25]} {[%emt 00:00:31]} 10.
Nxc6 {[%clk 00:09:13]} {[%emt 00:00:37]} bxc6 {[%clk 00:07:22]} {[%emt
00:00:09]} 11. f4 {[%clk 00:09:04]} {[%emt 00:00:13]} Rb8 {[%clk 00:07:05]}
{[%emt 00:00:22]} 12. e5 {[%clk 00:08:14]} {[%emt 00:00:56]} Nd5 {[%clk
00:07:05]} {[%emt 00:00:05]} 13. Qh5 {[%clk 00:06:59]} {[%emt 00:01:18]} h6
{[%clk 00:06:38]} {[%emt 00:00:33]} 14. Rf3 {[%clk 00:06:42]} {[%emt 00:00:22]}
Nxe3 {[%clk 00:06:33]} {[%emt 00:00:10]} 15. Rxe3 {[%clk 00:06:44]} {[%emt
00:00:02]} Bc5 {[%clk 00:06:38]} {[%emt 00:00:01]} 16. Rae1 {[%clk 00:06:36]}
{[%emt 00:00:12]} Qb6 {[%clk 00:06:24]} {[%emt 00:00:19]} 17. Nc4 {[%clk
00:06:15]} {[%emt 00:00:27]} Bxe3+ {[%clk 00:06:25]} {[%emt 00:00:04]} 18. Rxe3
{[%clk 00:06:13]} {[%emt 00:00:06]} Qc5 {[%clk 00:06:21]} {[%emt 00:00:10]} 19.
Kh1 {[%clk 00:06:02]} {[%emt 00:00:15]} Ba6 {[%clk 00:06:07]} {[%emt 00:00:20]}
20. Rg3 {[%clk 00:05:47]} {[%emt 00:00:19]} Qf2 {[%clk 00:01:21]} {[%emt
00:04:51]} 21. Qf3 {[%clk 00:04:05]} {[%emt 00:01:47]} Qxf3 {[%clk 00:01:22]}
{[%emt 00:00:05]} 22. Rxf3 {[%clk 00:04:07]} {[%emt 00:00:03]} Bxc4 {[%clk
00:01:24]} {[%emt 00:00:03]} 23. Bxc4 {[%clk 00:04:09]} {[%emt 00:00:02]} Rxb2
{[%clk 00:01:27]} {[%emt 00:00:02]} 24. h3 {[%clk 00:04:11]} {[%emt 00:00:03]}
Rfb8 {[%clk 00:01:13]} {[%emt 00:00:19]} 25. Bb3 {[%clk 00:04:11]} {[%emt
00:00:05]} R2xb3 {[%clk 00:00:46]} {[%emt 00:00:32]} 26. axb3 {[%clk 00:04:04]}
{[%emt 00:00:12]} Rxb3 {[%clk 00:00:50]} {[%emt 00:00:02]} 27. Kg1 {[%clk
00:03:59]} {[%emt 00:00:10]} f6 {[%clk 00:00:36]} {[%emt 00:00:19]} 28. exf6
{[%clk 00:03:54]} {[%emt 00:00:10]} gxf6 {[%clk 00:00:40]} {[%emt 00:00:01]} 29.
Rd3 {[%clk 00:03:55]} {[%emt 00:00:04]} d5 {[%clk 00:00:40]} {[%emt 00:00:07]}
30. Kf2 {[%clk 00:03:55]} {[%emt 00:00:04]} Kf7 {[%clk 00:00:40]} {[%emt
00:00:05]} 31. Kf3 {[%clk 00:03:56]} {[%emt 00:00:04]} e5 {[%clk 00:00:39]}
{[%emt 00:00:07]} 32. fxe5 {[%clk 00:03:56]} {[%emt 00:00:04]} fxe5 {[%clk
00:00:43]} {[%emt 00:00:01]} 33. Ke3 {[%clk 00:03:57]} {[%emt 00:00:03]} e4
{[%clk 00:00:44]} {[%emt 00:00:05]} 34. Rd2 {[%clk 00:03:55]} {[%emt 00:00:06]}
Rxc3+ {[%clk 00:00:49]} {[%emt 00:00:01]} 35. Kd4 {[%clk 00:03:58]} {[%emt
00:00:01]} Rd3+ {[%clk 00:00:44]} {[%emt 00:00:10]} 36. Rxd3 {[%clk 00:03:58]}
{[%emt 00:00:05]} exd3 {[%clk 00:00:48]} {[%emt 00:00:01]} 37. Kxd3 {[%clk
00:04:01]} {[%emt 00:00:02]} c5 {[%clk 00:00:52]} {[%emt 00:00:01]} 0-1

[Event "Ruzomberok Closed 2020 - 3. turnaj"]
[Site "Ruzomberok, Slovakia"]
[Date "2020.09.05"]
[Round "7.4"]
[White "Sustek, Adam"]
[Black "Gasper, Peter"]
[Result "1-0"]
[TimeControl "10m + 5s"]
[WhiteElo "1377"]
[BlackElo "1650"]

1. e4 {[%clk 00:10:07]} {[%emt 00:00:02]} c5 {[%emt 00:01:59]} 2. c3 {[%clk
00:10:10]} {[%emt 00:00:01]} Nc6 {[%clk 00:08:17]} {[%emt 00:00:01]} 3. d4
{[%clk 00:10:14]} {[%emt 00:00:01]} cxd4 {[%clk 00:08:21]} {[%emt 00:00:01]} 4.
cxd4 {[%clk 00:10:18]} {[%emt 00:00:01]} d5 {[%clk 00:08:24]} {[%emt 00:00:01]}
5. exd5 {[%clk 00:10:14]} {[%emt 00:00:09]} Qxd5 {[%clk 00:08:28]} {[%emt
00:00:02]} 6. Nf3 {[%clk 00:10:13]} {[%emt 00:00:05]} Bg4 {[%clk 00:08:32]}
{[%emt 00:00:02]} 7. Be2 {[%clk 00:10:17]} {[%emt 00:00:01]} Bxf3 {[%clk
00:08:33]} {[%emt 00:00:04]} 8. Bxf3 {[%clk 00:10:19]} {[%emt 00:00:03]} Qxd4
{[%clk 00:08:37]} {[%emt 00:00:01]} 9. Bxc6+ {[%clk 00:10:22]} {[%emt
00:00:02]} bxc6 {[%clk 00:08:22]} {[%emt 00:00:21]} 10. Qxd4 {[%clk 00:10:25]}
{[%emt 00:00:01]} e6 {[%clk 00:08:12]} {[%emt 00:00:15]} 11. O-O {[%clk
00:10:23]} {[%emt 00:00:08]} Nf6 {[%clk 00:08:16]} 12. Nc3 {[%clk 00:10:25]}
{[%emt 00:00:03]} Be7 {[%clk 00:08:15]} {[%emt 00:00:06]} 13. Qa4 {[%clk
00:10:16]} {[%emt 00:00:15]} O-O {[%clk 00:07:59]} {[%emt 00:00:20]} 14. Qxc6
{[%clk 00:10:13]} {[%emt 00:00:08]} Rfc8 {[%clk 00:07:48]} {[%emt 00:00:16]} 15.
Qa4 {[%clk 00:10:02]} {[%emt 00:00:16]} h6 {[%clk 00:07:45]} {[%emt 00:00:08]}
16. Be3 {[%clk 00:10:02]} {[%emt 00:00:04]} a6 {[%clk 00:07:41]} {[%emt
00:00:09]} 17. Rfd1 {[%clk 00:10:02]} {[%emt 00:00:05]} Ng4 {[%clk 00:07:25]}
{[%emt 00:00:22]} 18. Qxg4 {[%clk 00:10:00]} {[%emt 00:00:06]} 1-0

[Event "Ruzomberok Closed 2020 - 3. turnaj"]
[Site "Ruzomberok, Slovakia"]
[Date "2020.09.05"]
[Round "7.5"]
[White "Jurky, Marian"]
[Black "Ciglian, Michal"]
[Result "1/2-1/2"]
[TimeControl "10m + 5s"]
[WhiteElo "1347"]
[BlackElo "1388"]

1. e4 {[%clk 00:10:08]} {[%emt 00:00:02]} e5 {[%clk 00:10:09]} {[%emt
00:00:01]} 2. Nf3 {[%clk 00:10:11]} {[%emt 00:00:01]} Nc6 {[%clk 00:10:13]}
{[%emt 00:00:02]} 3. Bb5 {[%clk 00:10:15]} a6 {[%clk 00:10:17]} {[%emt
00:00:01]} 4. Ba4 {[%clk 00:10:19]} b5 {[%clk 00:10:21]} 5. Bb3 {[%clk
00:10:24]} {[%emt 00:00:01]} Bc5 {[%clk 00:10:25]} 6. Nc3 {[%clk 00:09:54]}
{[%emt 00:00:35]} Nge7 {[%clk 00:10:28]} {[%emt 00:00:02]} 7. Nd5 {[%clk
00:09:56]} {[%emt 00:00:03]} d6 {[%clk 00:10:25]} {[%emt 00:00:08]} 8. Nxe7
{[%clk 00:09:55]} {[%emt 00:00:06]} Qxe7 {[%clk 00:10:25]} {[%emt 00:00:05]} 9.
Bd5 {[%clk 00:09:58]} {[%emt 00:00:02]} Bb7 {[%clk 00:10:29]} {[%emt 00:00:02]}
10. d3 {[%clk 00:09:59]} {[%emt 00:00:04]} O-O {[%clk 00:10:05]} {[%emt
00:00:29]} 11. O-O {[%clk 00:10:02]} {[%emt 00:00:02]} Bb6 {[%clk 00:10:08]}
{[%emt 00:00:01]} 12. Qe2 {[%clk 00:10:05]} {[%emt 00:00:03]} Nd4 {[%clk
00:10:07]} {[%emt 00:00:06]} 13. Nxd4 {[%clk 00:10:01]} {[%emt 00:00:09]} Bxd5
{[%clk 00:10:09]} {[%emt 00:00:03]} 14. Nf3 {[%clk 00:10:03]} {[%emt 00:00:02]}
Bb7 {[%clk 00:10:10]} {[%emt 00:00:05]} 15. Be3 {[%clk 00:10:03]} {[%emt
00:00:05]} Bxe3 {[%clk 00:10:12]} {[%emt 00:00:04]} 16. Qxe3 {[%clk 00:10:07]}
{[%emt 00:00:01]} f5 {[%clk 00:10:14]} {[%emt 00:00:02]} 17. exf5 {[%clk
00:09:47]} {[%emt 00:00:25]} Rxf5 {[%clk 00:10:16]} {[%emt 00:00:05]} 18. Nd4
{[%clk 00:09:34]} {[%emt 00:00:17]} Rf7 {[%clk 00:10:08]} {[%emt 00:00:13]} 19.
Nb3 {[%clk 00:09:27]} {[%emt 00:00:13]} Qf6 {[%clk 00:10:07]} {[%emt 00:00:05]}
20. Nd2 {[%clk 00:08:58]} {[%emt 00:00:34]} Qg6 {[%clk 00:10:09]} {[%emt
00:00:02]} 21. Qg3 {[%clk 00:08:51]} {[%emt 00:00:13]} Qxg3 {[%clk 00:10:03]}
{[%emt 00:00:11]} 22. fxg3 {[%clk 00:08:51]} {[%emt 00:00:04]} Raf8 {[%clk
00:10:06]} {[%emt 00:00:02]} 23. Rxf7 {[%emt 00:00:04]} Rxf7 {[%clk 00:10:10]}
24. Rf1 {[%clk 00:08:57]} {[%emt 00:00:01]} Rxf1+ {[%clk 00:10:13]} {[%emt
00:00:02]} 25. Nxf1 {[%clk 00:09:01]} {[%emt 00:00:02]} Kf7 {[%clk 00:10:15]}
{[%emt 00:00:02]} 26. Nd2 {[%clk 00:09:04]} {[%emt 00:00:02]} Kf6 {[%clk
00:10:18]} {[%emt 00:00:02]} 27. Nf3 {[%clk 00:09:08]} {[%emt 00:00:01]} Bxf3
{[%clk 00:10:21]} {[%emt 00:00:02]} 28. gxf3 {[%clk 00:09:12]} {[%emt
00:00:02]} c5 {[%clk 00:10:20]} {[%emt 00:00:07]} 29. c3 {[%clk 00:09:12]}
{[%emt 00:00:04]} Kf5 {[%clk 00:10:21]} {[%emt 00:00:04]} 30. Kf2 {[%clk
00:09:16]} h5 {[%clk 00:10:25]} {[%emt 00:00:01]} 31. h3 {[%clk 00:09:18]}
{[%emt 00:00:03]} g5 {[%clk 00:10:29]} {[%emt 00:00:01]} 32. b3 {[%clk
00:09:14]} {[%emt 00:00:09]} d5 {[%clk 00:10:33]} {[%emt 00:00:01]} 33. a3
{[%clk 00:09:19]} a5 {[%clk 00:10:37]} 34. Ke3 {[%clk 00:08:56]} {[%emt
00:00:27]} g4 {[%clk 00:10:27]} {[%emt 00:00:16]} 35. fxg4+ {[%clk 00:08:47]}
{[%emt 00:00:13]} hxg4 {[%clk 00:10:30]} {[%emt 00:00:03]} 36. h4 {[%clk
00:08:51]} d4+ {[%clk 00:10:23]} {[%emt 00:00:12]} 37. cxd4 {[%clk 00:08:51]}
{[%emt 00:00:05]} cxd4+ {[%clk 00:10:26]} {[%emt 00:00:02]} 38. Kd2 {[%clk
00:08:54]} {[%emt 00:00:02]} a4 {[%clk 00:10:19]} {[%emt 00:00:11]} 1/2-1/2

[Event "Ruzomberok Closed 2020 - 3. turnaj"]
[Site "Ruzomberok, Slovakia"]
[Date "2020.09.05"]
[Round "7.6"]
[White "Caban, Lubor"]
[Black "Novak, Michal"]
[Result "1-0"]
[TimeControl "10m + 5s"]
[WhiteElo "1668"]
[BlackElo "1096"]

1. e4 {[%clk 00:10:09]} c5 {[%clk 00:10:06]} {[%emt 00:00:05]} 2. Nf3 {[%clk
00:10:12]} {[%emt 00:00:02]} Nc6 {[%clk 00:10:09]} {[%emt 00:00:01]} 3. Bc4
{[%clk 00:10:15]} {[%emt 00:00:02]} d6 {[%clk 00:10:08]} {[%emt 00:00:06]} 4.
Nc3 {[%clk 00:10:18]} {[%emt 00:00:02]} Bg4 {[%clk 00:10:11]} {[%emt 00:00:03]}
5. h3 {[%clk 00:10:20]} {[%emt 00:00:03]} Bh5 {[%clk 00:10:11]} {[%emt
00:00:04]} 6. g4 {[%clk 00:10:24]} Bg6 {[%clk 00:10:16]} 7. d3 {[%clk
00:10:18]} {[%emt 00:00:11]} Nf6 {[%clk 00:10:14]} {[%emt 00:00:06]} 8. Bg5
{[%clk 00:10:12]} {[%emt 00:00:11]} e6 {[%clk 00:10:17]} {[%emt 00:00:03]} 9.
O-O {[%clk 00:09:57]} {[%emt 00:00:20]} Be7 {[%clk 00:10:19]} {[%emt 00:00:03]}
10. Re1 {[%clk 00:09:50]} {[%emt 00:00:12]} h6 {[%clk 00:10:18]} {[%emt
00:00:06]} 11. Bh4 {[%clk 00:09:52]} {[%emt 00:00:02]} Nd4 {[%clk 00:10:21]}
{[%emt 00:00:03]} 12. Kg2 {[%clk 00:09:22]} {[%emt 00:00:34]} a6 {[%clk
00:10:04]} {[%emt 00:00:23]} 13. e5 {[%clk 00:09:25]} {[%emt 00:00:02]} Nd7
{[%clk 00:10:03]} {[%emt 00:00:07]} 14. exd6 {[%clk 00:08:57]} {[%emt
00:00:33]} Bxh4 {[%clk 00:09:53]} {[%emt 00:00:14]} 15. Nd5 {[%clk 00:08:45]}
{[%emt 00:00:17]} O-O {[%clk 00:09:46]} {[%emt 00:00:12]} 16. Nxh4 {[%clk
00:08:20]} {[%emt 00:00:30]} Qxh4 {[%clk 00:09:43]} {[%emt 00:00:08]} 17. Ne7+
{[%clk 00:08:24]} {[%emt 00:00:02]} Kh8 {[%clk 00:09:38]} {[%emt 00:00:09]} 18.
c3 {[%clk 00:07:54]} {[%emt 00:00:35]} b5 {[%clk 00:09:19]} {[%emt 00:00:25]}
19. cxd4 {[%clk 00:07:00]} {[%emt 00:00:59]} bxc4 {[%clk 00:09:20]} {[%emt
00:00:03]} 20. dxc4 {[%clk 00:06:57]} {[%emt 00:00:09]} cxd4 {[%clk 00:09:13]}
{[%emt 00:00:12]} 21. Qxd4 {[%clk 00:07:01]} {[%emt 00:00:01]} e5 {[%clk
00:08:51]} {[%emt 00:00:27]} 22. Nxg6+ {[%clk 00:06:55]} {[%emt 00:00:10]} fxg6
{[%clk 00:08:51]} {[%emt 00:00:06]} 23. Qe3 {[%clk 00:06:50]} {[%emt 00:00:09]}
Qf6 {[%clk 00:08:50]} {[%emt 00:00:07]} 24. c5 {[%clk 00:06:52]} {[%emt
00:00:03]} Rac8 {[%clk 00:08:45]} {[%emt 00:00:10]} 25. b4 {[%clk 00:06:54]}
{[%emt 00:00:03]} e4 {[%clk 00:08:04]} {[%emt 00:00:45]} 26. Rad1 {[%clk
00:06:45]} {[%emt 00:00:12]} Ne5 {[%clk 00:07:53]} {[%emt 00:00:18]} 27. Re2
{[%clk 00:06:26]} {[%emt 00:00:22]} Qf3+ {[%clk 00:07:25]} {[%emt 00:00:35]} 28.
Kg1 {[%clk 00:06:05]} {[%emt 00:00:24]} Rb8 {[%clk 00:07:07]} {[%emt 00:00:26]}
29. Qxe4 {[%clk 00:05:31]} {[%emt 00:00:38]} Qxe4 {[%clk 00:06:35]} {[%emt
00:00:37]} 30. Rxe4 {[%clk 00:05:33]} {[%emt 00:00:03]} Nc6 {[%clk 00:06:38]}
{[%emt 00:00:02]} 31. a3 {[%clk 00:05:30]} {[%emt 00:00:08]} Rf3 {[%clk
00:06:41]} {[%emt 00:00:02]} 32. Re3 {[%clk 00:05:26]} {[%emt 00:00:07]} Rf7
{[%clk 00:06:27]} {[%emt 00:00:21]} 33. d7 {[%clk 00:05:26]} {[%emt 00:00:05]}
Rd8 {[%clk 00:06:27]} {[%emt 00:00:06]} 34. Re6 {[%clk 00:05:17]} {[%emt
00:00:11]} Nb8 {[%clk 00:06:14]} {[%emt 00:00:20]} 35. c6 {[%clk 00:04:46]}
{[%emt 00:00:36]} Nxc6 {[%clk 00:05:56]} {[%emt 00:00:23]} 36. Rxc6 {[%clk
00:04:46]} {[%emt 00:00:05]} Rfxd7 {[%clk 00:05:57]} {[%emt 00:00:04]} 37. Rxd7
{[%clk 00:04:43]} {[%emt 00:00:08]} Rxd7 {[%clk 00:06:01]} {[%emt 00:00:01]} 38.
Rxg6 {[%clk 00:04:38]} {[%emt 00:00:10]} a5 {[%clk 00:05:58]} {[%emt 00:00:08]}
39. b5 {[%clk 00:04:38]} {[%emt 00:00:04]} Rd3 {[%clk 00:05:50]} {[%emt
00:00:14]} 40. Ra6 {[%clk 00:04:27]} {[%emt 00:00:16]} Rxa3 {[%clk 00:05:52]}
{[%emt 00:00:04]} 41. b6 {[%clk 00:04:31]} {[%emt 00:00:02]} a4 {[%clk
00:05:43]} {[%emt 00:00:14]} 42. b7 {[%clk 00:04:33]} {[%emt 00:00:03]} Rb3
{[%clk 00:05:44]} {[%emt 00:00:03]} 43. Ra8+ {[%clk 00:04:35]} {[%emt
00:00:02]} Kh7 {[%clk 00:05:36]} {[%emt 00:00:13]} 44. b8=Q {[%clk 00:04:36]}
{[%emt 00:00:05]} Rxb8 {[%clk 00:05:39]} {[%emt 00:00:01]} 45. Rxb8 {[%clk
00:04:36]} {[%emt 00:00:03]} g5 {[%clk 00:05:42]} {[%emt 00:00:04]} 46. Ra8
{[%clk 00:04:39]} {[%emt 00:00:02]} Kg6 {[%clk 00:05:46]} {[%emt 00:00:02]} 47.
Rxa4 {[%clk 00:04:43]} {[%emt 00:00:01]} h5 {[%clk 00:05:49]} {[%emt 00:00:01]}
48. f3 {[%clk 00:04:47]} {[%emt 00:00:01]} hxg4 {[%clk 00:05:52]} {[%emt
00:00:02]} 49. hxg4 {[%clk 00:04:51]} {[%emt 00:00:01]} Kh6 {[%clk 00:05:55]}
{[%emt 00:00:02]} 50. Ra6+ {[%clk 00:04:54]} {[%emt 00:00:02]} Kg7 {[%clk
00:05:59]} 51. Kf2 {[%clk 00:04:58]} {[%emt 00:00:01]} Kf7 {[%clk 00:06:04]} 52.
Ke3 {[%clk 00:05:03]} Ke7 {[%clk 00:06:08]} 53. f4 {[%clk 00:05:07]} Kf7 {[%clk
00:06:12]} 54. f5 {[%clk 00:05:11]} Kg7 {[%clk 00:06:15]} {[%emt 00:00:01]} 55.
f6+ {[%clk 00:05:15]} Kf7 {[%clk 00:06:19]} 56. Ke4 {[%clk 00:05:20]} Kf8
{[%clk 00:06:20]} {[%emt 00:00:05]} 57. Ra8+ {[%clk 00:05:24]} {[%emt
00:00:01]} Kf7 {[%clk 00:06:24]} 58. Ra6 {[%clk 00:05:25]} {[%emt 00:00:03]}
Kf8 {[%clk 00:06:27]} {[%emt 00:00:03]} 59. Kf5 {[%clk 00:05:29]} {[%emt
00:00:01]} Kf7 {[%clk 00:06:31]} 60. Kxg5 {[%clk 00:05:33]} {[%emt 00:00:01]}
Kf8 {[%clk 00:06:34]} {[%emt 00:00:01]} 61. Kf5 {[%clk 00:05:37]} {[%emt
00:00:01]} Kf7 {[%clk 00:06:39]} 62. g5 {[%clk 00:05:41]} Kf8 {[%clk 00:06:42]}
{[%emt 00:00:02]} 63. g6 Kg8 {[%emt 00:00:03]} 1-0